bitfinex/quotes_ETHUSD_20260107
["timestamp","ask_amount","ask_price","bid_price","bid_amount"]
[1767752363821,0.90373626,3243.2,3242.7,0.002]
[1767752364480,3.08346951,3243.1,3242.7,0.002]
[1767752365359,0.90373626,3243.0,3242.4,0.002]
[1767752365545,0.90373626,3243.0,3242.2,0.90399433]
[1767752365546,0.90373626,3242.8,3242.2,0.90399433]
[1767752366530,3.98751914,3242.8,3242.2,0.90399433]
[1767752367057,0.90373626,3242.8,3242.2,3.08631897]
[1767752367253,3.79068166,3243.0,3242.2,0.90399433]
[1767752367437,0.37906817,3242.9,3242.2,0.90399433]
[1767752367636,0.37906817,3242.9,3242.2,3.98831643]
[1767752367961,0.808,3243.1,3242.3,0.90199433]
[1767752368465,1.71173626,3243.1,3242.3,0.90199433]
[1767752369257,1.71173626,3243.1,3242.3,3.98613725]
[1767752369567,1.71173626,3243.1,3242.4,0.90199433]
[1767752370636,0.44628791,3243.4,3242.4,0.90199433]
[1767752370839,0.90373626,3243.7,3242.6,0.90199433]
[1767752371039,3.9866815,3243.7,3242.6,0.90199433]
[1767752371237,4.7946815,3243.7,3242.6,0.90199433]
[1767752371438,3.08402143,3243.6,3242.8,0.90199433]
[1767752372572,0.001,3243.0,3242.8,0.90199433]
[1767752372773,0.92253637,3243.5,3242.7,3.08384987]
[1767752373474,0.92253637,3243.5,3242.6,3.08594498]
[1767752373776,0.92253637,3243.5,3242.7,0.6877]
[1767752374438,0.92253637,3243.4,3242.7,0.6877]
[1767752375544,0.92253637,3243.4,3242.7,3.77148382]
[1767752377866,3.08403914,3243.6,3242.8,0.95919679]
[1767752378052,0.001,3243.6,3242.8,0.95919679]
[1767752378262,0.001,3243.6,3243.0,0.95919679]
[1767752380948,0.92353637,3243.6,3242.7,0.95919679]
[1767752381365,0.92353637,3243.6,3242.6,0.002]
[1767752381366,0.92253637,3243.4,3242.6,0.002]
[1767752381668,0.92253637,3243.4,3242.2,0.002]
[1767752381868,0.92253637,3243.2,3242.0,0.002]
[1767752382778,0.92253637,3243.0,3241.4,0.002]
[1767752382981,0.92253637,3242.8,3241.4,0.002]
[1767752383343,0.92253637,3242.8,3241.4,0.96119679]
[1767752383660,0.808,3242.7,3241.7,0.95919679]
[1767752383866,4.0649454,3242.7,3241.7,4.07481071]
[1767752384977,0.808,3242.6,3241.7,4.07481071]
[1767752385860,3.08381549,3242.8,3241.8,0.95919679]
[1767752386077,3.08368663,3242.9,3241.8,0.95919679]
[1767752386247,3.89168663,3242.9,3242.0,0.95919679]
[1767752386448,0.78987111,3242.9,3242.1,0.95919679]
[1767752386748,3.89160313,3243.0,3242.1,0.95919679]
[1767752387754,0.001,3243.1,3242.3,0.95919679]
[1767752387947,0.001,3243.1,3242.0,0.06795472]
[1767752387948,0.001,3243.1,3242.5,0.95919679]
[1767752388141,0.001,3243.1,3242.2,4.04349912]
[1767752388974,0.92353637,3243.1,3242.2,0.95919679]
[1767752389162,0.92253637,3243.0,3242.0,1.02715151]
[1767752389365,1.09569001,3243.0,3242.1,3.0843622]
[1767752389676,1.09569001,3243.0,3242.2,3.08432008]
[1767752389971,1.09569001,3243.0,3242.3,3.08418193]
[1767752390176,0.92253637,3243.0,3242.2,4.04347766]
[1767752391480,4.00612176,3243.0,3242.2,4.04347766]
[1767752391674,0.92253637,3243.0,3242.2,4.04347766]
[1767752392368,0.92253637,3243.0,3242.2,4.07432091]
[1767752394151,0.92253637,3243.0,3242.3,0.95919679]
[1767752398280,0.001,3242.7,3242.3,4.0434136]
[1767752400357,0.001,3242.7,3242.1,3.0844114]
[1767752400358,0.001,3242.7,3242.1,0.91051417]
[1767752400559,0.94767569,3242.7,3241.8,0.06795472]
[1767752400959,0.94767569,3242.7,3242.1,3.08437348]
[1767752401714,0.94767569,3242.7,3242.2,3.0843222]
[1767752401856,0.94767569,3242.7,3242.3,3.08422883]
[1767752402566,0.001,3242.7,3242.2,4.04884964]
[1767752402771,0.001,3243.1,3242.3,0.99537366]
[1767752402977,0.001,3243.1,3242.3,1.06332838]
[1767752403177,0.001,3243.1,3242.4,0.72319721]
[1767752403573,0.92795309,3243.1,3242.4,0.72319721]
[1767752404496,0.001,3243.1,3242.5,0.96453136]
[1767752405609,0.001,3243.1,3242.5,4.0485193]
[1767752406089,0.001,3243.1,3242.5,0.96453136]
[1767752407290,0.001,3243.1,3242.4,3.80728442]
[1767752407480,0.92795309,3243.1,3242.4,0.72319721]
[1767752407991,0.92795309,3243.1,3242.4,3.8073049]
[1767752409604,0.001,3242.8,3242.4,3.8073049]
[1767752409902,0.001,3242.8,3242.5,0.47718363]
[1767752410581,0.001,3242.8,3242.3,4.04872824]
[1767752410908,0.001,3242.8,3240.7,2.82955698]
[1767752410909,0.92795309,3242.8,3242.0,0.96453136]
[1767752411112,0.001,3242.8,3242.0,0.96453136]
[1767752411403,0.001,3242.8,3242.3,3.0841831]
[1767752417210,0.001,3242.8,3242.2,4.0488307]
[1767752417514,0.001,3242.8,3242.2,4.04880497]
[1767752417808,0.001,3242.8,3242.3,0.96453136]
[1767752421717,0.001,3242.8,3242.6,0.002]
[1767752421919,0.001,3242.8,3242.3,4.04871941]
[1767752422124,0.001,3242.8,3242.3,4.05071941]
[1767752422292,0.001,3242.8,3242.3,7.13494974]
[1767752422698,0.001,3242.8,3242.3,4.05071941]
[1767752423189,0.001,3242.8,3242.3,4.76422059]
[1767752425591,0.001,3243.1,3242.4,0.96453136]
[1767752425799,0.001,3243.1,3242.4,0.99537271]
[1767752425998,0.001,3243.1,3242.4,0.96453136]
[1767752426193,0.001,3243.1,3242.6,4.04847634]
[1767752427221,0.001,3243.6,3242.6,9.25183494]
[1767752427424,3.08221453,3244.5,3242.9,0.96453136]
[1767752427612,0.92695309,3244.4,3243.1,0.96453136]
[1767752427922,0.001,3244.6,3243.3,0.96453136]
[1767752428227,0.001,3244.6,3243.7,0.96453136]
[1767752428543,0.92795309,3244.6,3242.6,0.96453136]
[1767752428696,0.92795309,3244.6,3243.4,0.96453136]
[1767752429223,0.92795309,3244.6,3243.5,0.96453136]
[1767752429829,0.92795309,3244.6,3243.0,0.96453136]
[1767752430135,0.92795309,3244.6,3243.2,0.96453136]
[1767752430325,3.082139,3244.5,3243.5,0.96453136]
[1767752431131,4.00909209,3244.5,3243.5,0.96453136]
[1767752431432,7.09123109,3244.5,3243.5,0.96453136]
[1767752431927,0.93178701,3244.4,3243.0,0.91256732]
[1767752432156,0.93178701,3244.2,3243.0,0.91256732]
[1767752432357,0.93178701,3244.0,3243.0,0.91256732]
[1767752433145,0.93178701,3244.0,3243.0,0.94340296]
[1767752434055,0.001,3243.9,3243.0,0.94340296]
[1767752434259,3.08280411,3243.8,3243.1,0.91256732]
[1767752434435,0.001,3243.9,3243.2,0.91256732]
[1767752435945,3.08372081,3243.9,3243.2,0.91256732]
[1767752436564,0.001,3243.9,3243.2,0.91256732]
[1767752438166,0.93278701,3243.9,3243.0,0.91256732]
[1767752438391,0.93178701,3243.8,3242.6,3.08587136]
[1767752438683,0.93178701,3243.8,3242.6,3.80091712]
[1767752438966,0.93178701,3243.8,3242.7,0.91256732]
[1767752440599,6.1657983,3243.7,3242.7,0.91256732]
[1767752441180,6.1657983,3243.7,3242.6,0.71704576]
[1767752441181,0.93178701,3243.6,3242.6,0.71704576]
[1767752441392,0.93178701,3243.4,3242.6,0.002]
[1767752442115,0.93178701,3243.4,3242.6,0.91456732]
[1767752442268,0.70975853,3243.5,3242.7,0.91256732]
[1767752443068,3.79286821,3243.5,3242.7,0.91256732]
[1767752445478,6.87597789,3243.5,3242.7,0.91256732]
[1767752446005,6.87597789,3243.5,3243.0,0.002]
[1767752446313,0.68759779,3243.4,3243.0,0.002]
[1767752447086,3.77085105,3243.4,3243.0,0.002]
[1767752448475,0.68759779,3243.4,3243.0,0.002]
[1767752448676,3.083121,3243.5,3243.0,0.002]
[1767752449202,3.08402163,3243.6,3243.0,0.002]
[1767752449587,6.16704326,3243.6,3243.0,0.002]
[1767752451107,6.97504326,3243.6,3243.0,0.002]
[1767752451979,0.93178701,3243.5,3243.0,0.002]
[1767752452185,0.79068303,3243.4,3243.0,0.002]
[1767752456114,3.87391223,3243.4,3243.0,0.002]
[1767752457107,0.79068303,3243.4,3243.0,0.002]
[1767752457294,3.08319058,3243.4,3243.0,0.002]
[1767752457888,3.0831363,3243.5,3243.3,0.002]
[1767752459509,3.08403432,3243.6,3243.3,0.002]
[1767752460091,0.001,3243.6,3243.3,0.002]
[1767752462498,0.97501312,3243.6,3243.3,0.002]
[1767752462704,0.97501312,3243.6,3242.6,0.002]
[1767752463015,2.32588096,3243.5,3242.6,0.9915109]
[1767752463188,1.35186784,3243.5,3242.6,0.9915109]
[1767752463388,0.808,3243.4,3242.8,0.9895109]
[1767752464310,3.08327937,3243.3,3242.8,0.9895109]
[1767752469624,0.001,3243.0,3242.8,0.9895109]
[1767752470019,0.001,3243.6,3243.0,0.94417644]
[1767752470226,0.001,3243.6,3242.8,3.08370682]
[1767752470227,0.9727401,3243.5,3242.8,3.08370682]
[1767752470523,0.9727401,3243.5,3242.9,0.30837068]
[1767752470692,0.001,3243.9,3243.1,3.08346951]
[1767752470893,0.9737401,3243.9,3243.2,0.94417644]
[1767752471310,0.9737401,3243.9,3243.1,6.16693902]
[1767752471516,0.9737401,3243.9,3243.2,0.62348937]
[1767752472728,0.9727401,3244.3,3243.5,0.94417644]
[1767752472898,0.001,3244.6,3243.5,0.94417644]
[1767752472899,0.9737401,3244.6,3243.7,0.94417644]
[1767752473424,0.9737401,3244.6,3243.7,1.01213116]
[1767752473624,3.08141666,3245.3,3244.6,0.94417644]
[1767752473800,3.0812182,3245.5,3244.0,0.94417644]
[1767752474002,3.89010399,3245.6,3244.8,0.94417644]
[1767752474197,0.3890104,3245.5,3244.8,0.94417644]
[1767752474721,0.9727401,3245.4,3244.3,1.01213116]
[1767752475030,0.9727401,3245.2,3244.4,0.808]
[1767752475396,0.9727401,3245.2,3244.3,3.08231812]
[1767752475601,0.9727401,3245.2,3244.3,3.89031812]
[1767752475830,0.9727401,3245.2,3244.4,0.38903181]
[1767752477796,0.9727401,3245.2,3244.4,3.47124807]
[1767752478936,3.08141098,3245.3,3244.5,0.94417644]
[1767752479111,6.16285516,3245.3,3244.5,0.94417644]
[1767752479310,3.08141098,3245.3,3244.5,0.94417644]
[1767752479516,3.08141098,3245.3,3244.6,0.94417644]
[1767752480107,0.001,3245.6,3244.6,0.94417644]
[1767752480308,0.001,3245.6,3244.6,0.86814367]
[1767752480309,0.9737401,3245.6,3244.6,0.86814367]
[1767752480508,0.9727401,3245.5,3244.2,0.94417644]
[1767752480721,4.46466529,3245.6,3244.0,0.807]
[1767752480722,0.9727401,3245.3,3244.0,3.88958315]
[1767752480928,0.9727401,3245.3,3243.9,0.94417644]
[1767752481102,0.9727401,3245.1,3243.3,1.01213116]
[1767752481436,0.9727401,3244.8,3243.6,0.94417644]
[1767752481604,0.9727401,3244.6,3243.6,0.94417644]
[1767752481803,0.17807401,3244.5,3243.6,0.94417644]
[1767752482266,3.082234,3244.4,3243.6,0.94417644]
[1767752482422,6.164468,3244.4,3243.6,0.94417644]
[1767752484028,3.082234,3244.4,3243.6,0.94417644]
[1767752484768,6.164468,3244.4,3243.6,0.94417644]
[1767752484944,0.6342542,3244.3,3243.6,0.94417644]
[1767752486548,3.08242401,3244.2,3243.6,0.94417644]
[1767752488043,6.16484802,3244.2,3243.2,0.62348937]
[1767752488341,7.13758812,3244.2,3243.3,0.94417644]
[1767752489559,3.08242401,3244.2,3243.3,0.94417644]
[1767752489852,3.08242401,3244.2,3243.4,0.94417644]
[1767752490040,3.76232759,3244.2,3243.4,0.94417644]
[1767752490241,3.08242401,3244.2,3243.4,0.94417644]
[1767752492232,3.082234,3244.4,3243.6,0.91096655]
[1767752492555,6.164468,3244.4,3243.6,0.91096655]
[1767752492851,3.082234,3244.4,3243.6,0.91096655]
[1767752493554,3.082234,3244.4,3243.6,0.91296655]
[1767752494730,3.26024884,3244.5,3243.6,0.91296655]
[1767752494932,0.001,3244.8,3243.7,0.94179554]
[1767752495138,0.001,3244.8,3243.9,0.91096655]
[1767752495339,3.08285906,3244.8,3243.9,0.94179364]
[1767752496024,3.08285906,3244.8,3243.9,0.91096655]
[1767752496657,0.001,3244.8,3243.9,0.91096655]
[1767752496858,0.001,3244.8,3244.1,0.91096655]
[1767752501547,0.97762692,3244.8,3244.1,0.91096655]
[1767752502165,3.08194902,3244.7,3244.1,0.91096655]
[1767752502845,4.05952365,3244.8,3244.1,0.91096655]
[1767752503430,3.08289673,3244.8,3244.1,0.91096655]
[1767752503636,4.05952365,3244.8,3244.1,0.4024433]
[1767752503936,0.97662692,3244.7,3244.1,0.4024433]
[1767752504750,0.97662692,3244.7,3244.1,3.48494738]
[1767752504954,0.001,3244.8,3244.1,4.39591393]
[1767752505661,0.001,3244.8,3244.2,0.91296655]
[1767752506052,0.001,3244.8,3244.3,0.91096655]
[1767752506564,0.001,3244.8,3244.3,3.99325558]
[1767752506761,0.001,3244.8,3244.4,0.91096655]
[1767752507634,0.001,3244.9,3244.4,0.91096655]
[1767752507830,1.78462692,3245.4,3244.6,0.91096655]
[1767752508031,0.001,3245.6,3244.6,0.91096655]
[1767752508269,0.97762692,3246.5,3245.6,0.91096655]
[1767752508442,1.38837415,3246.5,3245.7,0.87495472]
[1767752508971,0.97762692,3246.5,3245.7,0.87495472]
[1767752509573,0.001,3246.5,3245.8,0.91096655]
[1767752509738,0.001,3246.5,3246.0,0.91096655]
[1767752510067,0.001,3246.5,3245.9,0.06795472]
[1767752511355,0.001,3246.5,3245.9,0.97892127]
[1767752512862,0.001,3246.5,3246.0,0.91096655]
[1767752513231,0.001,3246.5,3245.8,0.807]
[1767752513232,0.001,3246.5,3245.6,0.91096655]
[1767752513542,0.001,3246.5,3245.8,1.71796655]
[1767752514234,0.001,3246.5,3245.8,0.91096655]
[1767752515037,0.001,3246.5,3245.9,0.91096655]
[1767752516154,0.001,3246.5,3246.1,0.91096655]
[1767752517862,0.001,3246.2,3246.1,0.91096655]
[1767752520445,0.001,3246.2,3245.8,0.807]
[1767752520651,4.03926571,3246.6,3245.8,0.09876376]
[1767752520852,0.95912033,3246.5,3245.9,0.807]
[1767752521161,0.95912033,3246.5,3245.9,0.99392506]
[1767752521668,0.95912033,3246.5,3245.4,0.93509454]
[1767752521850,0.95912033,3246.5,3245.3,0.06795472]
[1767752521851,0.95912033,3246.5,3245.6,0.93509454]
[1767752522042,6.16029076,3246.6,3245.7,0.93509454]
[1767752522243,0.93479625,3246.5,3245.8,0.03080904]
[1767752522549,0.93479625,3246.5,3245.4,3.08127986]
[1767752522550,0.93479625,3246.3,3245.2,0.06795472]
[1767752522750,0.93479625,3246.1,3245.2,0.06795472]
[1767752522950,0.93479625,3246.1,3245.1,0.87495472]
[1767752524269,0.93479625,3246.1,3244.9,1.00304926]
[1767752524459,0.93479625,3246.1,3245.0,0.807]
[1767752524776,0.93479625,3245.7,3245.0,0.87495472]
[1767752525143,0.93479625,3245.7,3245.0,0.06795472]
[1767752525457,0.93479625,3246.3,3245.4,0.06795472]
[1767752526053,0.03090075,3246.2,3245.4,1.00304926]
[1767752526762,0.03090075,3246.2,3245.5,0.93509454]
[1767752527083,0.03090075,3246.2,3245.7,0.93509454]
[1767752527262,6.16029076,3246.6,3245.9,0.93509454]
[1767752527879,7.09508701,3246.6,3245.6,0.93509454]
[1767752529186,0.93479625,3246.5,3245.6,0.93509454]
[1767752529385,1.95231344,3246.5,3245.6,0.93509454]
[1767752529683,1.95231344,3246.5,3245.7,0.002]
[1767752530468,0.93479625,3246.4,3245.7,0.002]
[1767752531291,0.93479625,3246.2,3245.4,0.002]
[1767752532673,0.93479625,3246.2,3244.7,4.01704167]
[1767752532878,0.93479625,3246.0,3244.7,4.73004151]
[1767752533086,0.93479625,3245.8,3244.7,1.64809438]
[1767752533587,0.93479625,3245.8,3244.8,0.93509454]
[1767752533588,3.08099947,3245.7,3244.8,0.93509454]
[1767752533986,6.16199894,3245.7,3244.8,0.93509454]
[1767752534190,3.08099947,3245.7,3244.8,0.93509454]
[1767752534897,0.807,3245.9,3244.9,0.96591213]
[1767752535194,3.08036637,3246.4,3244.9,0.96591213]
[1767752535195,6.16067028,3246.4,3245.1,0.93509454]
[1767752535398,7.09546653,3246.4,3245.1,0.93509454]
[1767752535768,0.93479625,3246.3,3245.1,0.807]
[1767752536461,0.93479625,3246.3,3245.2,0.93509454]
[1767752536662,9.24100542,3246.4,3245.2,0.93509454]
[1767752536663,1.95237642,3246.2,3245.2,0.93509454]
[1767752537365,6.16067028,3246.4,3245.2,0.93509454]
[1767752537789,6.1604805,3246.5,3245.3,0.93509454]
[1767752538293,0.93479625,3246.4,3245.3,0.93509454]
[1767752540695,0.93479625,3246.2,3245.3,0.93509454]
[1767752541593,0.93479625,3246.2,3245.0,1.74209454]
[1767752541796,0.93479625,3246.0,3245.1,0.93509454]
[1767752542010,0.93479625,3246.0,3245.5,0.002]
[1767752543491,3.08080963,3245.9,3245.5,0.002]
[1767752543693,6.16161926,3245.9,3245.5,0.002]
[1767752546607,3.08075439,3246.0,3245.5,0.002]
[1767752546971,6.16150878,3246.0,3245.5,0.002]
[1767752548105,3.08075439,3246.0,3245.5,0.002]
[1767752548282,6.16150878,3246.0,3245.5,0.002]
[1767752550107,3.08075439,3246.0,3245.5,0.002]
[1767752550912,3.08043002,3246.3,3245.5,0.93709454]
[1767752551128,3.08005051,3246.7,3245.6,0.93509454]
[1767752551424,3.08005051,3246.7,3245.5,0.809]
[1767752551425,6.16018251,3246.7,3245.8,0.93509454]
[1767752551589,6.16091128,3246.8,3245.8,0.93509454]
[1767752552822,3.08095564,3246.8,3245.9,0.90630552]
[1767752553119,3.08095564,3246.8,3246.1,0.90630552]
[1767752553300,0.001,3246.8,3246.1,0.90630552]
[1767752553905,0.001,3246.5,3246.1,0.90630552]
[1767752557217,0.001,3246.5,3246.2,0.90630552]
[1767752557415,0.001,3246.8,3246.3,0.3986903]
[1767752557784,0.001,3246.8,3246.3,0.90630552]
[1767752558829,0.001,3246.8,3246.0,3.88770586]
[1767752558830,0.001,3246.8,3246.0,1.71330552]
[1767752559112,0.9385131,3246.8,3245.7,1.08071497]
[1767752559311,0.9385131,3246.8,3245.9,0.90630552]
[1767752559512,0.001,3246.8,3245.9,0.90630552]
[1767752559712,0.001,3246.8,3246.1,0.90630552]
[1767752562721,0.9385131,3246.8,3246.1,0.90630552]
[1767752563136,0.001,3246.8,3246.1,0.90630552]
[1767752565743,0.001,3246.8,3246.4,0.002]
[1767752565945,0.001,3246.5,3246.4,0.002]
[1767752568312,0.001,3246.5,3246.0,0.002]
[1767752568629,0.001,3246.5,3246.0,0.90830552]
[1767752573346,3.08124025,3246.5,3246.0,0.90830552]
[1767752574420,6.1614805,3246.5,3246.0,0.90830552]
[1767752574620,6.87137986,3246.5,3246.0,0.90830552]
[1767752578745,6.87137986,3246.5,3246.3,0.002]
[1767752579963,0.91092073,3246.4,3245.5,0.002]
[1767752580937,0.91092073,3246.2,3245.5,0.002]
[1767752581137,0.91092073,3246.0,3245.1,0.95017307]
[1767752581354,0.91092073,3246.0,3245.1,0.002]
[1767752581559,0.99931595,3245.9,3245.1,0.002]
[1767752581856,0.99931595,3245.8,3244.8,0.002]
[1767752583129,0.99931595,3245.6,3244.8,0.002]
[1767752583325,0.99931595,3245.4,3244.8,0.002]
[1767752583538,0.99931595,3245.4,3244.2,0.002]
[1767752584270,3.08099947,3245.7,3244.6,0.92753275]
[1767752584439,0.99931595,3245.6,3244.3,6.164658]
[1767752584637,0.99931595,3245.6,3244.5,0.807]
[1767752585265,0.99931595,3245.4,3244.5,3.88912781]
[1767752585464,0.99931595,3245.4,3244.5,4.81666056]
[1767752585973,0.99931595,3245.4,3244.5,3.88912781]
[1767752586125,0.99931595,3245.4,3244.6,0.92753275]
[1767752586431,0.99931595,3245.4,3244.7,0.48166606]
[1767752587054,3.0811372,3245.6,3244.8,0.92753275]
[1767752587260,6.1620913,3245.7,3244.8,0.92753275]
[1767752587870,3.08101996,3245.7,3244.8,0.92753275]
[1767752588074,6.1620913,3245.7,3245.0,0.92753275]
[1767752589881,3.08101996,3245.7,3245.0,0.92753275]
[1767752591370,3.08033514,3246.4,3245.7,0.91550692]
[1767752591532,0.99931595,3246.3,3245.3,0.90511685]
[1767752591738,0.99931595,3246.3,3245.3,0.807]
[1767752591946,0.99931595,3246.2,3245.3,0.807]
[1767752592856,0.99931595,3246.2,3245.3,1.71211685]
[1767752593262,3.08061982,3246.1,3245.3,1.71211685]
[1767752594172,0.99931595,3246.1,3245.3,3.88836659]
[1767752594336,0.99931595,3246.1,3245.3,3.91918038]
[1767752594535,0.99931595,3246.1,3245.4,0.70006098]
[1767752595468,0.99931595,3246.0,3245.4,0.70006098]
[1767752598045,3.08065455,3246.1,3245.4,0.70006098]
[1767752598246,3.08065455,3246.1,3245.4,1.60517783]
[1767752600458,3.08052492,3246.2,3245.4,1.60517783]
[1767752600664,0.99931595,3246.1,3244.9,0.90711685]
[1767752601255,0.99931595,3246.1,3245.1,0.90511685]
[1767752601856,0.99931595,3246.1,3245.2,0.90511685]
[1767752602201,3.48850901,3246.2,3245.4,0.90511685]
[1767752602497,0.001,3245.8,3245.4,0.90511685]
[1767752603476,0.001,3245.8,3245.4,1.3037758]
[1767752603682,0.001,3245.8,3245.4,0.39865895]
[1767752604082,0.001,3245.8,3245.2,0.90511685]
[1767752605390,1.00031595,3245.8,3244.9,0.90711685]
[1767752605797,1.00031595,3245.8,3244.9,3.98882237]
[1767752607362,1.00031595,3245.8,3245.0,0.93593349]
[1767752607589,1.00031595,3245.8,3245.0,1.41859739]
[1767752608276,4.08125021,3245.8,3245.1,0.90511685]
[1767752608460,4.08125021,3245.8,3245.2,0.03081474]
[1767752608995,1.00031595,3245.8,3245.2,0.03081474]
[1767752609197,4.0812429,3245.8,3245.1,0.90511685]
[1767752609386,4.79744081,3245.8,3245.1,0.90511685]
[1767752611697,7.87836776,3245.8,3245.1,0.90511685]
[1767752611897,0.98180571,3245.7,3245.1,0.90511685]
[1767752612594,0.98180571,3245.7,3244.9,0.002]
[1767752613376,0.98180571,3245.5,3244.9,0.002]
[1767752613895,0.98180571,3245.4,3244.9,0.002]
[1767752614995,0.71439945,3245.5,3244.9,0.90711685]
[1767752615202,0.98180571,3245.6,3245.0,0.03080997]
[1767752615495,0.98180571,3245.5,3245.2,0.002]
[1767752617911,0.98180571,3245.3,3245.2,0.002]
[1767752618980,3.08128427,3245.4,3245.2,0.002]
[1767752619177,3.08122636,3245.5,3245.2,0.002]
[1767752619382,0.98180571,3245.4,3245.2,0.002]
[1767752620178,0.98180571,3245.6,3245.2,0.002]
[1767752620378,4.06287878,3245.7,3245.2,0.002]
[1767752624402,0.98180571,3245.6,3245.2,0.002]
[1767752625480,4.06299504,3245.5,3245.2,0.002]
[1767752625711,4.77740073,3245.5,3245.2,0.002]
[1767752625880,1.6962114,3245.5,3245.2,0.002]
[1767752626508,0.98180571,3245.5,3245.2,0.002]
[1767752626708,4.06286739,3245.7,3245.2,0.002]
[1767752627692,4.06286739,3245.7,3245.5,0.002]
[1767752628402,0.98180571,3245.6,3245.2,0.002]
[1767752628597,0.71439291,3245.5,3245.2,0.002]
[1767752629611,3.79560181,3245.5,3245.2,0.002]
[1767752630495,0.71439291,3245.5,3245.2,0.002]
[1767752631510,7.14393008,3245.7,3245.2,0.002]
[1767752631888,0.98180571,3245.6,3245.2,0.002]
[1767752633612,4.06298841,3245.6,3245.2,0.002]
[1767752634288,0.98180571,3245.6,3245.2,0.002]
[1767752634488,4.0629314,3245.6,3245.2,0.002]
[1767752635302,4.77742565,3245.6,3245.2,0.002]
[1767752636316,0.98180571,3245.5,3245.2,0.002]
[1767752636512,0.98180571,3245.5,3244.9,0.002]
[1767752637918,0.98180571,3245.4,3244.9,0.002]
[1767752639805,3.79561983,3245.6,3245.2,0.002]
[1767752644228,0.95370754,3245.4,3244.5,0.002]
[1767752644402,0.95370754,3245.2,3244.2,0.002]
[1767752645223,0.95370754,3245.0,3244.2,0.91311685]
[1767752646533,0.95370754,3244.8,3244.2,0.002]
[1767752646729,0.40354666,3244.7,3244.2,0.002]
[1767752646934,3.08175906,3244.9,3244.2,0.91311685]
[1767752647423,6.16351812,3244.9,3244.2,0.91311685]
[1767752649329,3.08175906,3244.9,3244.2,0.91311685]
[1767752649504,6.16351812,3244.9,3244.2,0.91311685]
[1767752649704,7.11665588,3245.2,3244.2,0.91311685]
[1767752650020,0.95370754,3245.1,3244.2,0.91311685]
[1767752651831,0.95370754,3245.1,3244.5,0.002]
[1767752651832,4.03531002,3245.1,3244.5,0.002]
[1767752652003,0.001,3244.9,3244.5,0.002]
[1767752652433,0.001,3244.9,3244.5,0.03282139]
[1767752653033,0.001,3244.9,3244.6,0.91111685]
[1767752653832,0.001,3244.9,3244.5,0.002]
[1767752664641,0.001,3244.7,3244.5,0.002]
[1767752666141,0.001,3244.7,3243.9,0.002]
[1767752666142,0.95470754,3244.7,3243.9,0.002]
[1767752666323,0.95370754,3244.5,3243.6,0.002]
[1767752668739,0.95370754,3244.3,3243.6,0.002]
[1767752668949,0.95370754,3244.2,3243.6,0.002]
[1767752670210,4.03616915,3244.2,3243.6,0.002]
[1767752670415,0.95370754,3244.2,3243.6,0.002]
[1767752670649,0.95370754,3244.1,3243.6,0.002]
[1767752672429,0.96208132,3243.9,3243.6,0.002]
[1767752675321,4.04479987,3243.9,3243.6,0.002]
[1767752675522,0.96208132,3243.9,3243.6,0.002]
[1767752676436,4.04479331,3243.9,3243.6,0.002]
[1767752676855,0.96208132,3243.9,3243.6,0.002]
[1767752677638,0.96208132,3243.8,3242.9,0.002]
[1767752677854,0.96208132,3243.8,3242.6,0.002]
[1767752678663,0.96208132,3243.6,3242.6,0.002]
[1767752680967,0.96208132,3243.4,3242.6,0.002]
[1767752681146,0.96208132,3243.3,3242.6,0.002]
[1767752681351,1.13908945,3243.2,3242.6,0.002]
[1767752681655,0.96208132,3243.2,3242.6,0.002]
[1767752682547,0.96208132,3243.2,3242.6,0.91311685]
[1767752683144,0.96208132,3243.1,3242.6,0.002]
[1767752687945,0.808,3243.4,3242.6,0.91311685]
[1767752687946,4.04526563,3243.4,3242.6,0.91311685]
[1767752688144,0.96208132,3243.3,3242.6,0.91311685]
[1767752688369,0.96208132,3243.3,3242.6,1.31284167]
[1767752688969,0.96208132,3243.3,3242.9,0.002]
[1767752689371,0.96208132,3243.3,3242.9,0.00099902]
[1767752689372,0.96208132,3243.2,3242.9,0.00099902]
[1767752693871,4.04550644,3243.2,3242.9,0.00099902]
[1767752695145,4.00032173,3243.2,3242.9,0.00099902]
[1767752695362,4.4003539,3243.2,3242.9,0.00099902]
[1767752699082,1.73036482,3243.5,3242.9,0.00099902]
[1767752699295,0.808,3243.4,3242.9,0.9274564]
[1767752700279,0.001,3243.6,3242.9,0.9274564]
[1767752700479,0.92236482,3243.5,3242.9,0.00099902]
[1767752701180,4.00545603,3243.5,3242.9,0.00099902]
[1767752701344,0.001,3243.6,3243.0,0.92645738]
[1767752701777,0.95780746,3244.2,3243.2,0.94990618]
[1767752702278,1.35009672,3244.6,3243.4,0.94990618]
[1767752702512,1.35009672,3244.6,3243.8,0.94990618]
[1767752702513,0.39228926,3244.6,3243.8,0.94990618]
[1767752703284,0.39228926,3244.6,3243.9,0.94990618]
[1767752703468,0.39228926,3244.6,3244.1,0.94990618]
[1767752705149,0.39228926,3244.6,3244.0,0.48406243]
[1767752706473,0.39228926,3244.6,3244.0,1.43396861]
[1767752706674,0.39228926,3244.6,3244.1,0.94990618]
[1767752707585,0.39228926,3244.6,3244.0,0.48406243]
[1767752707586,0.95780746,3244.5,3244.0,0.48406243]
[1767752707784,0.95780746,3244.5,3243.7,0.94990618]
[1767752708183,0.95780746,3244.5,3243.7,4.03280443]
[1767752708386,0.95780746,3244.5,3243.7,0.94990618]
[1767752708592,0.95780746,3244.5,3243.7,4.0328039]
[1767752708754,0.95780746,3244.5,3243.8,1.35318657]
[1767752709961,0.95780746,3244.5,3243.8,4.43598968]
[1767752710578,0.95780746,3244.5,3243.8,1.35318657]
[1767752712390,0.95780746,3244.5,3243.8,4.43597366]
[1767752713194,0.95780746,3244.5,3243.9,0.98073327]
[1767752713474,0.39228926,3244.6,3244.0,0.44668008]
[1767752713673,0.001,3244.3,3244.0,0.44668008]
[1767752715785,0.001,3244.3,3244.1,0.03082519]
[1767752715986,0.95780746,3244.5,3244.1,0.03082519]
[1767752717295,1.35009672,3244.6,3244.0,0.03082614]
[1767752717966,0.95780746,3244.5,3244.0,0.40633901]
[1767752718162,0.95780746,3244.5,3243.8,0.94990618]
[1767752718768,0.95780746,3244.3,3243.4,0.94990618]
[1767752719168,0.95780746,3244.3,3243.2,3.08334108]